[Event "Titled Tuesday Blitz July 18 Early 2023"]
[White "Atakhan, Abtin"]
[Black "Siniauski, Artsiom"]
[WhiteFideId "22502203"]
[BlackFideId "13512269"]
[WhiteElo "2743"]
[BlackElo "2583"]
[Result "1-0"]
[Round "8"]
[TimeControl "180+2"]
[Date "2023.07.18"]
[WhiteClock "0:00:02"]
[BlackClock "0:00:01"]
[Board "32"]

1. d4 {[%clk 0:03:00]}  Nf6 {[%clk 0:02:57]} 2. c4 {[%clk 0:03:01]}  e6 {[%clk 0:02:57]} 3. Nf3 {[%clk 0:03:01]}  b6 {[%clk 0:02:57]} 4. g3 {[%clk 0:03:02]}  Bb4+ {[%clk 0:02:56]} 5. Bd2 {[%clk 0:02:58]}  Be7 {[%clk 0:02:57]} 6. Bg2 {[%clk 0:02:58]}  c6 {[%clk 0:02:57]} 7. O-O {[%clk 0:02:53]}  d5 {[%clk 0:02:57]} 8. Ne5 {[%clk 0:02:52]}  O-O {[%clk 0:02:56]} 9. Nc3 {[%clk 0:02:51]}  Bb7 {[%clk 0:02:55]} 10. e4 {[%clk 0:02:45]}  dxc4 {[%clk 0:02:52]} 11. Nxc4 {[%clk 0:02:33]}  Qxd4 {[%clk 0:02:48]} 12. b3 {[%clk 0:02:01]}  Rd8 {[%clk 0:02:47]} 13. Qc1 {[%clk 0:01:50]}  b5 {[%clk 0:02:05]} 14. Be3 {[%clk 0:01:46]}  Qd7 {[%clk 0:02:06]} 15. Na5 {[%clk 0:01:36]}  Qc7 {[%clk 0:01:59]} 16. Nxb7 {[%clk 0:01:31]}  Qxb7 {[%clk 0:02:00]} 17. e5 {[%clk 0:01:09]}  Nd5 {[%clk 0:01:59]} 18. Ne4 {[%clk 0:01:01]}  Nd7 {[%clk 0:01:56]} 19. Bd4 {[%clk 0:00:57]}  c5 {[%clk 0:01:36]} 20. Bb2 {[%clk 0:00:56]}  Qc7 {[%clk 0:01:35]} 21. f4 {[%clk 0:00:46]}  c4 {[%clk 0:01:35]} 22. bxc4 {[%clk 0:00:41]}  bxc4 {[%clk 0:01:35]} 23. Kh1 {[%clk 0:00:39]}  Rab8 {[%clk 0:01:27]} 24. Bd4 {[%clk 0:00:33]}  N7b6 {[%clk 0:01:14]} 25. f5 {[%clk 0:00:29]}  exf5 {[%clk 0:01:03]} 26. Rxf5 {[%clk 0:00:28]}  Nb4 {[%clk 0:01:03]} 27. Bc3 {[%clk 0:00:13]}  Nd3 {[%clk 0:01:01]} 28. Qf1 {[%clk 0:00:10]}  Rf8 {[%clk 0:00:30]} 29. Nf6+ {[%clk 0:00:10]}  Bxf6 {[%clk 0:00:21]} 30. exf6 {[%clk 0:00:11]}  Na4 {[%clk 0:00:22]} 31. fxg7 {[%clk 0:00:10]}  Rfd8 {[%clk 0:00:20]} 32. Ba5 {[%clk 0:00:09]}  Nb6 {[%clk 0:00:13]} 33. Qf3 {[%clk 0:00:05]}  c3 {[%clk 0:00:09]} 34. Bxc3 {[%clk 0:00:03]}  Qxc3 {[%clk 0:00:08]} 35. Rf1 {[%clk 0:00:04]}  Qc4 {[%clk 0:00:03]} 36. Rxf7 {[%clk 0:00:03]}  Nd5 {[%clk 0:00:02]} 37. Rf8+ {[%clk 0:00:03]}  Kxg7 {[%clk 0:00:02]} 38. Qf7+ {[%clk 0:00:02]}  Kh6 {[%clk 0:00:02]} 39. Qe6+ {[%clk 0:00:02]}  Kg5 {[%clk 0:00:02]} 40. h4+ {[%clk 0:00:02]}  Kh5 {[%clk 0:00:02]} 41. Bf3+ {[%clk 0:00:02]}  Qg4 {[%clk 0:00:01]} 42. Bxg4# {[%clk 0:00:02]} 1-0


[Site "https://www.chess.com"]

[Event "Titled Tuesday Blitz July 18 Early 2023"]
[White "Rychagov, Andrey"]
[Black "Bendayan Claros, Aaron"]
[WhiteFideId "4119932"]
[BlackFideId "3803392"]
[WhiteElo "2709"]
[BlackElo "2482"]
[Result "1-0"]
[Round "8"]
[TimeControl "180+2"]
[Date "2023.07.18"]
[WhiteClock "0:00:06"]
[BlackClock "0:00:00"]
[Board "36"]

1. d4 {[%clk 0:02:56]}  d5 {[%clk 0:02:59]} 2. c4 {[%clk 0:02:55]}  e6 {[%clk 0:03:00]} 3. Nf3 {[%clk 0:02:56]}  c6 {[%clk 0:03:00]} 4. Bg5 {[%clk 0:02:55]}  Be7 {[%clk 0:03:00]} 5. Bxe7 {[%clk 0:02:55]}  Qxe7 {[%clk 0:03:01]} 6. e4 {[%clk 0:02:56]}  dxe4 {[%clk 0:03:01]} 7. Nfd2 {[%clk 0:02:55]}  Nf6 {[%clk 0:03:00]} 8. Qe2 {[%clk 0:02:50]}  O-O {[%clk 0:02:59]} 9. Nc3 {[%clk 0:02:49]}  c5 {[%clk 0:02:57]} 10. dxc5 {[%clk 0:02:46]}  Nc6 {[%clk 0:02:54]} 11. Ndxe4 {[%clk 0:02:45]}  Nd7 {[%clk 0:02:43]} 12. Qe3 {[%clk 0:02:17]}  Nb4 {[%clk 0:02:41]} 13. O-O-O {[%clk 0:02:15]}  Na6 {[%clk 0:02:36]} 14. Na4 {[%clk 0:02:08]}  b6 {[%clk 0:02:16]} 15. cxb6 {[%clk 0:01:58]}  axb6 {[%clk 0:02:13]} 16. Nxb6 {[%clk 0:01:58]}  Nxb6 {[%clk 0:02:12]} 17. Qxb6 {[%clk 0:01:58]}  Rb8 {[%clk 0:02:02]} 18. Qd6 {[%clk 0:01:57]}  Qb7 {[%clk 0:02:02]} 19. Qd4 {[%clk 0:01:28]}  e5 {[%clk 0:01:52]} 20. Qxe5 {[%clk 0:01:25]}  Bg4 {[%clk 0:01:28]} 21. Nd6 {[%clk 0:01:13]}  Qb4 {[%clk 0:01:09]} 22. f3 {[%clk 0:00:59]}  Be6 {[%clk 0:01:02]} 23. Bd3 {[%clk 0:00:57]}  Qa4 {[%clk 0:00:59]} 24. Kb1 {[%clk 0:00:47]}  Nb4 {[%clk 0:00:55]} 25. a3 {[%clk 0:00:47]}  Nc6 {[%clk 0:00:45]} 26. Qe4 {[%clk 0:00:39]}  g6 {[%clk 0:00:37]} 27. c5 {[%clk 0:00:38]}  Qxa3 {[%clk 0:00:32]} 28. Bb5 {[%clk 0:00:26]}  Qa2+ {[%clk 0:00:26]} 29. Kc1 {[%clk 0:00:24]}  Na5 {[%clk 0:00:17]} 30. Qa4 {[%clk 0:00:21]}  Rxb5 {[%clk 0:00:02]} 31. Qxa2 {[%clk 0:00:14]}  Bxa2 {[%clk 0:00:03]} 32. Nxb5 {[%clk 0:00:13]}  Nb3+ {[%clk 0:00:02]} 33. Kc2 {[%clk 0:00:13]}  Nxc5 {[%clk 0:00:02]} 34. Rd4 {[%clk 0:00:10]}  Bb3+ {[%clk 0:00:02]} 35. Kc3 {[%clk 0:00:11]}  Rc8 {[%clk 0:00:02]} 36. Kb4 {[%clk 0:00:11]}  Be6 {[%clk 0:00:02]} 37. Nd6 {[%clk 0:00:09]}  Rc6 {[%clk 0:00:01]} 38. Kb5 {[%clk 0:00:07]}  Bd7 {[%clk 0:00:00]} 39. Kc4 {[%clk 0:00:06]} 1-0


[Site "https://www.chess.com"]

[Event "Titled Tuesday Blitz July 18 Early 2023"]
[White "Goryachkina, Aleksandra"]
[Black "Shimanov, Aleksandr"]
[WhiteFideId "4147103"]
[BlackFideId "4198603"]
[WhiteElo "2650"]
[BlackElo "2982"]
[Result "0-1"]
[Round "8"]
[TimeControl "180+2"]
[Date "2023.07.18"]
[WhiteClock "0:00:00"]
[BlackClock "0:00:07"]
[Board "37"]

1. d4 {[%clk 0:02:58]}  Nf6 {[%clk 0:02:52]} 2. Nc3 {[%clk 0:02:55]}  d5 {[%clk 0:02:49]} 3. Bf4 {[%clk 0:02:54]}  a6 {[%clk 0:02:41]} 4. e3 {[%clk 0:02:49]}  b5 {[%clk 0:02:39]} 5. Bd3 {[%clk 0:02:44]}  Bb7 {[%clk 0:02:35]} 6. Nf3 {[%clk 0:02:40]}  e6 {[%clk 0:02:33]} 7. Ne2 {[%clk 0:02:36]}  c5 {[%clk 0:02:32]} 8. c3 {[%clk 0:02:36]}  Nbd7 {[%clk 0:02:31]} 9. h3 {[%clk 0:02:29]}  Be7 {[%clk 0:02:31]} 10. O-O {[%clk 0:02:29]}  O-O {[%clk 0:02:31]} 11. Ne5 {[%clk 0:02:24]}  b4 {[%clk 0:02:24]} 12. Nxd7 {[%clk 0:02:05]}  Nxd7 {[%clk 0:02:20]} 13. dxc5 {[%clk 0:01:47]}  Nxc5 {[%clk 0:02:03]} 14. cxb4 {[%clk 0:01:41]}  Nxd3 {[%clk 0:02:03]} 15. Qxd3 {[%clk 0:01:41]}  Bxb4 {[%clk 0:02:04]} 16. Qb3 {[%clk 0:01:39]}  Qe7 {[%clk 0:02:01]} 17. Rfc1 {[%clk 0:01:34]}  Rfc8 {[%clk 0:02:01]} 18. a3 {[%clk 0:01:25]}  Bc5 {[%clk 0:01:51]} 19. Be5 {[%clk 0:01:21]}  a5 {[%clk 0:01:47]} 20. Ng3 {[%clk 0:01:05]}  Ba6 {[%clk 0:01:42]} 21. Qd1 {[%clk 0:01:02]}  f6 {[%clk 0:01:39]} 22. Bd4 {[%clk 0:00:52]}  Bd6 {[%clk 0:01:38]} 23. Qd2 {[%clk 0:00:46]}  a4 {[%clk 0:01:38]} 24. Rxc8+ {[%clk 0:00:43]}  Rxc8 {[%clk 0:01:37]} 25. Rc1 {[%clk 0:00:43]}  Bc4 {[%clk 0:01:30]} 26. Bc3 {[%clk 0:00:42]}  Qf7 {[%clk 0:01:15]} 27. Qd1 {[%clk 0:00:38]}  Bb3 {[%clk 0:01:14]} 28. Qg4 {[%clk 0:00:38]}  Rc4 {[%clk 0:01:13]} 29. Qe2 {[%clk 0:00:35]}  Qc7 {[%clk 0:01:11]} 30. Nh5 {[%clk 0:00:17]}  Bh2+ {[%clk 0:01:10]} 31. Kh1 {[%clk 0:00:14]}  Be5 {[%clk 0:01:11]} 32. f4 {[%clk 0:00:09]}  Bxc3 {[%clk 0:00:40]} 33. Rxc3 {[%clk 0:00:10]}  Rxc3 {[%clk 0:00:41]} 34. bxc3 {[%clk 0:00:11]}  Qxc3 {[%clk 0:00:32]} 35. Qg4 {[%clk 0:00:11]}  f5 {[%clk 0:00:32]} 36. Qg5 {[%clk 0:00:10]}  Kf7 {[%clk 0:00:19]} 37. Qd8 {[%clk 0:00:07]}  Qc6 {[%clk 0:00:18]} 38. Qh8 {[%clk 0:00:04]}  Qc3 {[%clk 0:00:18]} 39. Qxh7 {[%clk 0:00:03]}  Bd1 {[%clk 0:00:17]} 40. Qh8 {[%clk 0:00:02]}  Qb2 {[%clk 0:00:14]} 41. Kh2 {[%clk 0:00:02]}  Bf3 {[%clk 0:00:14]} 42. Kg3 {[%clk 0:00:01]}  Qxg2+ {[%clk 0:00:13]} 43. Kh4 {[%clk 0:00:02]}  Qf2+ {[%clk 0:00:09]} 44. Ng3 {[%clk 0:00:02]}  Qxe3 {[%clk 0:00:07]} 45. Qxg7+ {[%clk 0:00:00]}  Kxg7 {[%clk 0:00:07]} 0-1


[Site "https://www.chess.com"]

[Event "Titled Tuesday Blitz July 18 Early 2023"]
[White "Ahmad, Khagan"]
[Black "Morefield, Jason"]
[WhiteFideId "13431552"]
[BlackFideId "30920825"]
[WhiteElo "2617"]
[BlackElo "2759"]
[Result "0-1"]
[Round "8"]
[TimeControl "180+2"]
[Date "2023.07.18"]
[WhiteClock "0:00:00"]
[BlackClock "0:00:05"]
[Board "41"]

1. Nf3 {[%clk 0:03:00]}  d5 {[%clk 0:02:59]} 2. d4 {[%clk 0:02:59]}  Nf6 {[%clk 0:02:59]} 3. g3 {[%clk 0:02:59]}  b5 {[%clk 0:02:57]} 4. Bg2 {[%clk 0:02:52]}  e6 {[%clk 0:02:57]} 5. O-O {[%clk 0:02:53]}  Nbd7 {[%clk 0:02:56]} 6. b3 {[%clk 0:02:53]}  c5 {[%clk 0:02:52]} 7. c4 {[%clk 0:02:52]}  bxc4 {[%clk 0:02:52]} 8. bxc4 {[%clk 0:02:53]}  Bb7 {[%clk 0:02:51]} 9. Nc3 {[%clk 0:02:31]}  dxc4 {[%clk 0:02:47]} 10. Qa4 {[%clk 0:02:30]}  Be7 {[%clk 0:02:43]} 11. Rb1 {[%clk 0:02:18]}  Rb8 {[%clk 0:02:29]} 12. dxc5 {[%clk 0:01:48]}  Bxc5 {[%clk 0:02:25]} 13. Bf4 {[%clk 0:01:39]}  O-O {[%clk 0:01:38]} 14. Bxb8 {[%clk 0:01:32]}  Qxb8 {[%clk 0:01:39]} 15. Qxc4 {[%clk 0:01:02]}  Rc8 {[%clk 0:01:33]} 16. Qd3 {[%clk 0:00:57]}  Bb6 {[%clk 0:01:29]} 17. Nd2 {[%clk 0:00:52]}  Ne5 {[%clk 0:01:27]} 18. Qc2 {[%clk 0:00:47]}  Bxg2 {[%clk 0:01:26]} 19. Kxg2 {[%clk 0:00:47]}  Qa8+ {[%clk 0:01:27]} 20. Kg1 {[%clk 0:00:39]}  Bd4 {[%clk 0:01:10]} 21. Rb3 {[%clk 0:00:35]}  h5 {[%clk 0:00:51]} 22. e3 {[%clk 0:00:25]}  Bb6 {[%clk 0:00:48]} 23. e4 {[%clk 0:00:26]}  h4 {[%clk 0:00:45]} 24. Qd1 {[%clk 0:00:16]}  h3 {[%clk 0:00:38]} 25. Nf3 {[%clk 0:00:13]}  Neg4 {[%clk 0:00:33]} 26. Qe2 {[%clk 0:00:10]}  Rxc3 {[%clk 0:00:26]} 27. Rxc3 {[%clk 0:00:10]}  Nxe4 {[%clk 0:00:26]} 28. Rc8+ {[%clk 0:00:10]}  Qxc8 {[%clk 0:00:25]} 29. Qxe4 {[%clk 0:00:10]}  e5 {[%clk 0:00:15]} 30. Ng5 {[%clk 0:00:07]}  g6 {[%clk 0:00:13]} 31. Nxh3 {[%clk 0:00:06]}  Qe6 {[%clk 0:00:03]} 32. Ng5 {[%clk 0:00:06]}  Qd7 {[%clk 0:00:03]} 33. Qa8+ {[%clk 0:00:05]}  Kg7 {[%clk 0:00:03]} 34. Qf3 {[%clk 0:00:05]}  f6 {[%clk 0:00:02]} 35. Ne4 {[%clk 0:00:05]}  f5 {[%clk 0:00:03]} 36. Ng5 {[%clk 0:00:05]}  e4 {[%clk 0:00:03]} 37. Qf4 {[%clk 0:00:05]}  e3 {[%clk 0:00:02]} 38. Kg2 {[%clk 0:00:03]}  exf2 {[%clk 0:00:02]} 39. h3 {[%clk 0:00:03]}  Ne3+ {[%clk 0:00:03]} 40. Kxf2 {[%clk 0:00:03]}  Nd5+ {[%clk 0:00:03]} 41. Kf3 {[%clk 0:00:03]}  Nxf4 {[%clk 0:00:04]} 42. gxf4 {[%clk 0:00:04]}  Qd3+ {[%clk 0:00:04]} 43. Kg2 {[%clk 0:00:00]}  Qe2+ {[%clk 0:00:05]} 0-1


[Site "https://www.chess.com"]

[Event "Titled Tuesday Blitz July 18 Early 2023"]
[White "Xu, Yi"]
[Black "Petrosian, Karlen"]
[WhiteFideId "8605564"]
[BlackFideId "4176146"]
[WhiteElo "2739"]
[BlackElo "2612"]
[Result "1/2-1/2"]
[Round "8"]
[TimeControl "180+2"]
[Date "2023.07.18"]
[WhiteClock "0:00:34"]
[BlackClock "0:00:42"]
[Board "43"]

1. e4 {[%clk 0:03:00]}  e6 {[%clk 0:02:59]} 2. d4 {[%clk 0:02:58]}  d5 {[%clk 0:02:59]} 3. e5 {[%clk 0:02:59]}  c5 {[%clk 0:02:58]} 4. c3 {[%clk 0:02:59]}  Qb6 {[%clk 0:02:59]} 5. Nf3 {[%clk 0:02:57]}  Nc6 {[%clk 0:02:59]} 6. a3 {[%clk 0:02:56]}  Bd7 {[%clk 0:02:59]} 7. b4 {[%clk 0:02:51]}  cxd4 {[%clk 0:02:59]} 8. cxd4 {[%clk 0:02:51]}  Rc8 {[%clk 0:02:59]} 9. Be2 {[%clk 0:02:47]}  a5 {[%clk 0:02:58]} 10. b5 {[%clk 0:02:46]}  Nxd4 {[%clk 0:02:58]} 11. Nxd4 {[%clk 0:02:44]}  Rxc1 {[%clk 0:02:58]} 12. Qxc1 {[%clk 0:02:44]}  Qxd4 {[%clk 0:02:59]} 13. Qc3 {[%clk 0:02:42]}  Bc5 {[%clk 0:02:59]} 14. O-O {[%clk 0:02:27]}  Ne7 {[%clk 0:02:58]} 15. Ra2 {[%clk 0:02:01]}  Qxc3 {[%clk 0:02:54]} 16. Nxc3 {[%clk 0:02:01]}  Bd4 {[%clk 0:02:55]} 17. Na4 {[%clk 0:01:58]}  Bxe5 {[%clk 0:02:51]} 18. Rc1 {[%clk 0:01:54]}  Nf5 {[%clk 0:02:46]} 19. Nc5 {[%clk 0:01:51]}  b6 {[%clk 0:02:42]} 20. Na4 {[%clk 0:01:46]}  Bd4 {[%clk 0:02:02]} 21. Rc7 {[%clk 0:01:45]}  Ke7 {[%clk 0:01:46]} 22. g4 {[%clk 0:01:41]}  Nd6 {[%clk 0:01:41]} 23. Rd2 {[%clk 0:01:41]}  e5 {[%clk 0:01:41]} 24. Rxd4 {[%clk 0:01:39]}  exd4 {[%clk 0:01:42]} 25. Nxb6 {[%clk 0:01:39]}  Rd8 {[%clk 0:01:42]} 26. Nxd5+ {[%clk 0:01:37]}  Ke6 {[%clk 0:01:42]} 27. Nf4+ {[%clk 0:01:33]}  Kf6 {[%clk 0:01:19]} 28. b6 {[%clk 0:01:29]}  g5 {[%clk 0:01:18]} 29. Nd5+ {[%clk 0:01:22]}  Ke5 {[%clk 0:01:17]} 30. Ne7 {[%clk 0:01:19]}  Ke6 {[%clk 0:01:06]} 31. Nc6 {[%clk 0:01:19]}  Bxc6 {[%clk 0:01:04]} 32. Rxc6 {[%clk 0:01:20]}  Rb8 {[%clk 0:01:04]} 33. Bf3 {[%clk 0:01:18]}  Ke5 {[%clk 0:01:01]} 34. Kf1 {[%clk 0:01:15]}  d3 {[%clk 0:00:59]} 35. Ke1 {[%clk 0:01:13]}  Ne4 {[%clk 0:00:58]} 36. Bxe4 {[%clk 0:01:07]}  Kxe4 {[%clk 0:00:58]} 37. Kd2 {[%clk 0:01:08]}  Kf3 {[%clk 0:00:58]} 38. Kxd3 {[%clk 0:01:06]}  Kxg4 {[%clk 0:00:57]} 39. Kc4 {[%clk 0:01:05]}  f5 {[%clk 0:00:56]} 40. Kb5 {[%clk 0:01:04]}  f4 {[%clk 0:00:55]} 41. Kxa5 {[%clk 0:01:02]}  Kf3 {[%clk 0:00:55]} 42. Ka6 {[%clk 0:00:56]}  Ra8+ {[%clk 0:00:55]} 43. Kb5 {[%clk 0:00:56]}  Rxa3 {[%clk 0:00:56]} 44. b7 {[%clk 0:00:52]}  Rb3+ {[%clk 0:00:56]} 45. Ka6 {[%clk 0:00:53]}  Rxb7 {[%clk 0:00:46]} 46. Kxb7 {[%clk 0:00:51]}  Kxf2 {[%clk 0:00:42]} 47. Rh6 {[%clk 0:00:42]}  g4 {[%clk 0:00:40]} 48. Rxh7 {[%clk 0:00:42]}  g3 {[%clk 0:00:41]} 49. hxg3 {[%clk 0:00:33]}  fxg3 {[%clk 0:00:42]} 50. Rg7 {[%clk 0:00:33]}  g2 {[%clk 0:00:42]} 51. Rxg2+ {[%clk 0:00:34]}  Kxg2 {[%clk 0:00:42]} 1/2-1/2


[Site "https://www.chess.com"]

[Event "Titled Tuesday Blitz July 18 Early 2023"]
[White "Ashraf, Artin"]
[Black "Skliarov, Viktor"]
[WhiteFideId "22514805"]
[BlackFideId "14106736"]
[WhiteElo "2731"]
[BlackElo "2604"]
[Result "1-0"]
[Round "8"]
[TimeControl "180+2"]
[Date "2023.07.18"]
[WhiteClock "0:01:33"]
[BlackClock "0:00:08"]
[Board "45"]

1. Nf3 {[%clk 0:02:59]}  g6 {[%clk 0:03:00]} 2. h4 {[%clk 0:02:57]}  h5 {[%clk 0:02:57]} 3. e4 {[%clk 0:02:55]}  c5 {[%clk 0:02:55]} 4. d4 {[%clk 0:02:51]}  cxd4 {[%clk 0:02:56]} 5. Nxd4 {[%clk 0:02:52]}  Nc6 {[%clk 0:02:54]} 6. Nc3 {[%clk 0:02:51]}  Bg7 {[%clk 0:02:54]} 7. Be3 {[%clk 0:02:51]}  Nf6 {[%clk 0:02:54]} 8. f3 {[%clk 0:02:52]}  d6 {[%clk 0:02:52]} 9. Bc4 {[%clk 0:02:48]}  Bd7 {[%clk 0:02:49]} 10. Qd2 {[%clk 0:02:47]}  Rc8 {[%clk 0:02:48]} 11. Bb3 {[%clk 0:02:46]}  Na5 {[%clk 0:02:47]} 12. O-O-O {[%clk 0:02:44]}  Nc4 {[%clk 0:02:47]} 13. Bxc4 {[%clk 0:02:43]}  Rxc4 {[%clk 0:02:48]} 14. Nd5 {[%clk 0:02:42]}  Nxd5 {[%clk 0:02:45]} 15. exd5 {[%clk 0:02:43]}  Qc8 {[%clk 0:02:08]} 16. Rde1 {[%clk 0:02:37]}  Be5 {[%clk 0:01:36]} 17. Kb1 {[%clk 0:02:28]}  Bf5 {[%clk 0:01:28]} 18. Rc1 {[%clk 0:02:23]}  a6 {[%clk 0:01:04]} 19. Rhe1 {[%clk 0:02:14]}  O-O {[%clk 0:01:00]} 20. Rh1 {[%clk 0:02:12]}  Qd7 {[%clk 0:00:41]} 21. g4 {[%clk 0:02:10]}  hxg4 {[%clk 0:00:41]} 22. h5 {[%clk 0:02:11]}  Rfc8 {[%clk 0:00:40]} 23. fxg4 {[%clk 0:02:00]}  Be4 {[%clk 0:00:35]} 24. hxg6 {[%clk 0:01:56]}  Bxg6 {[%clk 0:00:21]} 25. Nf5 {[%clk 0:01:54]}  Rxg4 {[%clk 0:00:08]} 26. Nh6+ {[%clk 0:01:53]}  Kf8 {[%clk 0:00:09]} 27. Nxg4 {[%clk 0:01:51]}  Qxg4 {[%clk 0:00:10]} 28. Rhd1 {[%clk 0:01:34]}  Qe4 {[%clk 0:00:09]} 29. Bd4 {[%clk 0:01:32]}  Bxd4 {[%clk 0:00:08]} 30. Qxd4 {[%clk 0:01:33]}  Rxc2 {[%clk 0:00:08]} 31. Qh8# {[%clk 0:01:33]} 1-0


[Site "https://www.chess.com"]

[Event "Titled Tuesday Blitz July 18 Early 2023"]
[White "Itgelt, Khuyagtsogt"]
[Black "Moskvin, Anatoly"]
[WhiteFideId "4902912"]
[BlackFideId "24199990"]
[WhiteElo "2682"]
[BlackElo "2569"]
[Result "0-1"]
[Round "8"]
[TimeControl "180+2"]
[Date "2023.07.18"]
[WhiteClock "0:00:02"]
[BlackClock "0:00:08"]
[Board "49"]

1. d4 {[%clk 0:03:00]}  Nf6 {[%clk 0:02:59]} 2. c4 {[%clk 0:03:01]}  c5 {[%clk 0:02:59]} 3. d5 {[%clk 0:03:00]}  b5 {[%clk 0:03:00]} 4. Nf3 {[%clk 0:02:59]}  g6 {[%clk 0:02:59]} 5. cxb5 {[%clk 0:02:58]}  a6 {[%clk 0:02:59]} 6. b6 {[%clk 0:02:58]}  Bg7 {[%clk 0:02:58]} 7. Nc3 {[%clk 0:02:52]}  d6 {[%clk 0:02:58]} 8. a4 {[%clk 0:02:52]}  a5 {[%clk 0:02:57]} 9. e4 {[%clk 0:02:48]}  O-O {[%clk 0:02:57]} 10. Be2 {[%clk 0:02:48]}  Nbd7 {[%clk 0:02:57]} 11. Nd2 {[%clk 0:02:46]}  Nxb6 {[%clk 0:02:56]} 12. O-O {[%clk 0:02:45]}  e6 {[%clk 0:02:49]} 13. Nc4 {[%clk 0:02:23]}  exd5 {[%clk 0:02:48]} 14. exd5 {[%clk 0:02:09]}  Re8 {[%clk 0:02:22]} 15. Bg5 {[%clk 0:01:52]}  h6 {[%clk 0:02:21]} 16. Bh4 {[%clk 0:01:52]}  Nxc4 {[%clk 0:02:07]} 17. Bxc4 {[%clk 0:01:53]}  Qb6 {[%clk 0:02:07]} 18. Bb5 {[%clk 0:01:51]}  Re7 {[%clk 0:01:50]} 19. Qd2 {[%clk 0:01:32]}  g5 {[%clk 0:01:39]} 20. Bg3 {[%clk 0:01:32]}  Nh5 {[%clk 0:01:20]} 21. Rfe1 {[%clk 0:01:28]}  Raa7 {[%clk 0:01:17]} 22. Rxe7 {[%clk 0:01:18]}  Rxe7 {[%clk 0:01:17]} 23. Re1 {[%clk 0:01:19]}  Qd8 {[%clk 0:01:10]} 24. b3 {[%clk 0:00:41]}  Bf5 {[%clk 0:00:56]} 25. h3 {[%clk 0:00:11]}  Nxg3 {[%clk 0:00:37]} 26. fxg3 {[%clk 0:00:12]}  Bd4+ {[%clk 0:00:29]} 27. Kh1 {[%clk 0:00:12]}  Be5 {[%clk 0:00:23]} 28. g4 {[%clk 0:00:08]}  Bg6 {[%clk 0:00:22]} 29. Ne2 {[%clk 0:00:05]}  f5 {[%clk 0:00:20]} 30. gxf5 {[%clk 0:00:04]}  Bxf5 {[%clk 0:00:21]} 31. Rf1 {[%clk 0:00:04]}  Qc8 {[%clk 0:00:20]} 32. Bd3 {[%clk 0:00:04]}  Bxh3 {[%clk 0:00:10]} 33. Ng1 {[%clk 0:00:04]}  Bg4 {[%clk 0:00:08]} 34. Qf2 {[%clk 0:00:04]}  Qe8 {[%clk 0:00:07]} 35. Be2 {[%clk 0:00:03]}  Bxe2 {[%clk 0:00:03]} 36. Qxe2 {[%clk 0:00:03]}  Bf4 {[%clk 0:00:03]} 37. Qg4 {[%clk 0:00:03]}  Kg7 {[%clk 0:00:03]} 38. Nh3 {[%clk 0:00:02]}  Be3 {[%clk 0:00:03]} 39. Qf3 {[%clk 0:00:01]}  Bd4 {[%clk 0:00:02]} 40. Qf5 {[%clk 0:00:01]}  Rf7 {[%clk 0:00:03]} 41. Qxf7+ {[%clk 0:00:02]}  Qxf7 {[%clk 0:00:04]} 42. Rxf7+ {[%clk 0:00:02]}  Kxf7 {[%clk 0:00:04]} 43. g4 {[%clk 0:00:03]}  Kf6 {[%clk 0:00:05]} 44. Kg2 {[%clk 0:00:03]}  Ke5 {[%clk 0:00:06]} 45. Kf3 {[%clk 0:00:04]}  Kxd5 {[%clk 0:00:07]} 46. Ke2 {[%clk 0:00:05]}  c4 {[%clk 0:00:07]} 47. bxc4+ {[%clk 0:00:06]}  Kxc4 {[%clk 0:00:08]} 48. Kf3 {[%clk 0:00:03]}  Kb4 {[%clk 0:00:08]} 49. Nf4 {[%clk 0:00:02]}  gxf4 {[%clk 0:00:08]} 0-1


[Site "https://www.chess.com"]

[Event "Titled Tuesday Blitz July 18 Early 2023"]
[White "Nouri, Alekhine"]
[Black "Garv Gaur"]
[WhiteFideId "5216184"]
[BlackFideId "45030839"]
[WhiteElo "2680"]
[BlackElo "2569"]
[Result "1-0"]
[Round "8"]
[TimeControl "180+2"]
[Date "2023.07.18"]
[WhiteClock "0:02:06"]
[BlackClock "0:00:23"]
[Board "50"]

1. e4 {[%clk 0:02:56]}  g6 {[%clk 0:02:58]} 2. d4 {[%clk 0:02:56]}  c6 {[%clk 0:02:56]} 3. Nc3 {[%clk 0:02:49]}  d5 {[%clk 0:02:56]} 4. e5 {[%clk 0:02:50]}  Bg7 {[%clk 0:02:54]} 5. Bg5 {[%clk 0:02:49]}  Qb6 {[%clk 0:02:53]} 6. Qd2 {[%clk 0:02:47]}  Bf5 {[%clk 0:02:48]} 7. O-O-O {[%clk 0:02:43]}  Nd7 {[%clk 0:02:47]} 8. f3 {[%clk 0:02:41]}  Be6 {[%clk 0:02:14]} 9. Nge2 {[%clk 0:02:40]}  h6 {[%clk 0:01:57]} 10. Bh4 {[%clk 0:02:38]}  g5 {[%clk 0:01:56]} 11. Bg3 {[%clk 0:02:37]}  f5 {[%clk 0:01:53]} 12. exf6 {[%clk 0:02:28]}  Ngxf6 {[%clk 0:01:53]} 13. Na4 {[%clk 0:02:28]}  Qd8 {[%clk 0:01:45]} 14. h4 {[%clk 0:02:26]}  b5 {[%clk 0:01:40]} 15. Nc5 {[%clk 0:02:11]}  Nxc5 {[%clk 0:01:38]} 16. dxc5 {[%clk 0:02:11]}  gxh4 {[%clk 0:01:35]} 17. Be5 {[%clk 0:02:10]}  Qd7 {[%clk 0:01:26]} 18. Nd4 {[%clk 0:02:07]}  Ne4 {[%clk 0:01:17]} 19. Qf4 {[%clk 0:02:07]}  Rf8 {[%clk 0:01:15]} 20. Qh2 {[%clk 0:02:06]}  Bxe5 {[%clk 0:00:33]} 21. Qxe5 {[%clk 0:02:07]}  Nf2 {[%clk 0:00:27]} 22. Nxe6 {[%clk 0:02:07]}  Nxh1 {[%clk 0:00:23]} 23. Nxf8 {[%clk 0:02:06]} 1-0


[Site "https://www.chess.com"]

[Event "Titled Tuesday Blitz July 18 Early 2023"]
[White "Portela Peleteiro, Alberto"]
[Black "Pakleza, Zbigniew"]
[WhiteFideId "22276106"]
[BlackFideId "1119290"]
[WhiteElo "2555"]
[BlackElo "2787"]
[Result "1-0"]
[Round "8"]
[TimeControl "180+2"]
[Date "2023.07.18"]
[WhiteClock "0:00:38"]
[BlackClock "0:00:00"]
[Board "58"]

1. e4 {[%clk 0:03:00]}  a6 {[%clk 0:03:00]} 2. c4 {[%clk 0:02:58]}  d6 {[%clk 0:03:00]} 3. d4 {[%clk 0:02:55]}  e6 {[%clk 0:03:01]} 4. Nc3 {[%clk 0:02:54]}  c6 {[%clk 0:03:01]} 5. Nf3 {[%clk 0:02:51]}  b6 {[%clk 0:03:02]} 6. Bd3 {[%clk 0:02:50]}  f6 {[%clk 0:03:02]} 7. O-O {[%clk 0:02:49]}  Ne7 {[%clk 0:03:02]} 8. Re1 {[%clk 0:02:48]}  g6 {[%clk 0:03:01]} 9. e5 {[%clk 0:02:44]}  dxe5 {[%clk 0:02:58]} 10. dxe5 {[%clk 0:02:43]}  f5 {[%clk 0:02:58]} 11. Bg5 {[%clk 0:02:42]}  Bg7 {[%clk 0:02:56]} 12. h4 {[%clk 0:02:34]}  h6 {[%clk 0:02:54]} 13. Bf4 {[%clk 0:02:34]}  O-O {[%clk 0:02:53]} 14. Qd2 {[%clk 0:02:28]}  Kh7 {[%clk 0:02:53]} 15. Rad1 {[%clk 0:02:28]}  Qe8 {[%clk 0:02:25]} 16. Bc2 {[%clk 0:02:13]}  a5 {[%clk 0:02:07]} 17. Qd6 {[%clk 0:02:08]}  Na6 {[%clk 0:02:02]} 18. Nd4 {[%clk 0:02:02]}  Nc5 {[%clk 0:01:41]} 19. Nxc6 {[%clk 0:01:52]}  Nxc6 {[%clk 0:01:33]} 20. Nb5 {[%clk 0:01:46]}  Nb4 {[%clk 0:00:50]} 21. Nc7 {[%clk 0:01:40]}  Nxc2 {[%clk 0:00:50]} 22. Nxe8 {[%clk 0:01:39]}  Rxe8 {[%clk 0:00:51]} 23. Re2 {[%clk 0:01:25]}  Nb4 {[%clk 0:00:41]} 24. a3 {[%clk 0:01:20]}  Nba6 {[%clk 0:00:23]} 25. Qxb6 {[%clk 0:01:20]}  a4 {[%clk 0:00:24]} 26. Be3 {[%clk 0:01:14]}  Rb8 {[%clk 0:00:22]} 27. Qa5 {[%clk 0:01:11]}  Ne4 {[%clk 0:00:06]} 28. Qxa4 {[%clk 0:01:08]}  Re7 {[%clk 0:00:07]} 29. Bd4 {[%clk 0:00:47]}  Nac5 {[%clk 0:00:05]} 30. Qc2 {[%clk 0:00:45]}  Nb3 {[%clk 0:00:04]} 31. Bc3 {[%clk 0:00:42]}  Nxc3 {[%clk 0:00:04]} 32. Qxc3 {[%clk 0:00:41]}  Rc7 {[%clk 0:00:00]} 33. Rd8 {[%clk 0:00:38]} 1-0


[Site "https://www.chess.com"]